[Event "January 2 Early 2024"]
[Site "https://www.chess.com"]
[Date "2024.01.02"]
[Round "2"]
[White "Herman, Daniel"]
[Black "Winkels, Marcel"]
[Result "1/2-1/2"]
[Board "258"]
[TimeControl "180+1"]
[WhiteFideId "30935008"]
[BlackFideId "1003887"]
[WhiteElo "2405"]
[BlackElo "1995"]
[WhiteTeam "USA"]
[BlackTeam "NED"]
[WhiteClock "0:00:07"]
[BlackClock "0:00:09"]

1. c4 {[%clk 0:03:00]}  e5 {[%clk 0:02:58]} 2. Nf3 {[%clk 0:02:58]}  e4 {[%clk 0:02:56]} 3. Nd4 {[%clk 0:02:58]}  Nc6 {[%clk 0:02:54]} 4. Nxc6 {[%clk 0:02:46]}  dxc6 {[%clk 0:02:52]} 5. Nc3 {[%clk 0:02:44]}  Nf6 {[%clk 0:02:51]} 6. g3 {[%clk 0:02:41]}  Be7 {[%clk 0:02:49]} 7. Bg2 {[%clk 0:02:41]}  Bf5 {[%clk 0:02:46]} 8. O-O {[%clk 0:02:33]}  O-O {[%clk 0:02:37]} 9. b3 {[%clk 0:02:31]}  Qd7 {[%clk 0:02:29]} 10. Qc2 {[%clk 0:02:24]}  e3 {[%clk 0:02:17]} 11. d3 {[%clk 0:02:24]}  exf2+ {[%clk 0:02:12]} 12. Kh1 {[%clk 0:02:08]}  Bc5 {[%clk 0:02:08]} 13. Nd1 {[%clk 0:01:57]}  Bh3 {[%clk 0:01:59]} 14. Nxf2 {[%clk 0:01:45]}  Bxf2 {[%clk 0:01:56]} 15. Rxf2 {[%clk 0:01:35]}  Bxg2+ {[%clk 0:01:56]} 16. Rxg2 {[%clk 0:01:34]}  Rfe8 {[%clk 0:01:54]} 17. Bb2 {[%clk 0:01:32]}  Ng4 {[%clk 0:01:52]} 18. e4 {[%clk 0:01:19]}  Re6 {[%clk 0:01:40]} 19. Qc3 {[%clk 0:01:16]}  f6 {[%clk 0:01:17]} 20. h3 {[%clk 0:00:54]}  Nh6 {[%clk 0:01:16]} 21. Kh2 {[%clk 0:00:52]}  Rd8 {[%clk 0:01:15]} 22. d4 {[%clk 0:00:36]}  Rxe4 {[%clk 0:01:11]} 23. Rf1 {[%clk 0:00:35]}  Rde8 {[%clk 0:01:07]} 24. Rgf2 {[%clk 0:00:31]}  Re2 {[%clk 0:01:03]} 25. Qf3 {[%clk 0:00:27]}  Rxf2+ {[%clk 0:01:01]} 26. Rxf2 {[%clk 0:00:26]}  Nf7 {[%clk 0:00:59]} 27. Re2 {[%clk 0:00:23]}  Ng5 {[%clk 0:00:57]} 28. Qg2 {[%clk 0:00:22]}  Rxe2 {[%clk 0:00:52]} 29. Qxe2 {[%clk 0:00:22]}  Qxh3+ {[%clk 0:00:52]} 30. Kg1 {[%clk 0:00:23]}  Qd7 {[%clk 0:00:51]} 31. Qe3 {[%clk 0:00:20]}  h6 {[%clk 0:00:50]} 32. Bc3 {[%clk 0:00:17]}  Kh7 {[%clk 0:00:48]} 33. Bb2 {[%clk 0:00:18]}  Qh3 {[%clk 0:00:47]} 34. Bc3 {[%clk 0:00:17]}  Qg4 {[%clk 0:00:44]} 35. Kg2 {[%clk 0:00:16]}  Qh3+ {[%clk 0:00:43]} 36. Kg1 {[%clk 0:00:16]}  Qf5 {[%clk 0:00:42]} 37. Kg2 {[%clk 0:00:16]}  Qe4+ {[%clk 0:00:39]} 38. Qxe4+ {[%clk 0:00:16]}  Nxe4 {[%clk 0:00:39]} 39. Bb4 {[%clk 0:00:16]}  Kg6 {[%clk 0:00:32]} 40. Be7 {[%clk 0:00:16]}  Ng5 {[%clk 0:00:30]} 41. d5 {[%clk 0:00:12]}  cxd5 {[%clk 0:00:29]} 42. cxd5 {[%clk 0:00:13]}  Ne4 {[%clk 0:00:23]} 43. Bd8 {[%clk 0:00:13]}  Nc3 {[%clk 0:00:23]} 44. Bxc7 {[%clk 0:00:11]}  Nxd5 {[%clk 0:00:23]} 45. Ba5 {[%clk 0:00:11]}  Kf5 {[%clk 0:00:21]} 46. Kf3 {[%clk 0:00:11]}  g5 {[%clk 0:00:20]} 47. g4+ {[%clk 0:00:11]}  Ke5 {[%clk 0:00:19]} 48. Bd2 {[%clk 0:00:10]}  f5 {[%clk 0:00:19]} 49. Ba5 {[%clk 0:00:08]}  f4 {[%clk 0:00:18]} 50. Bd8 {[%clk 0:00:07]}  Kd4 {[%clk 0:00:18]} 51. Ba5 {[%clk 0:00:06]}  Nf6 {[%clk 0:00:15]} 52. Bd8 {[%clk 0:00:06]}  Ng8 {[%clk 0:00:15]} 53. Ke2 {[%clk 0:00:04]}  Ke4 {[%clk 0:00:14]} 54. Kf2 {[%clk 0:00:05]}  f3 {[%clk 0:00:14]} 55. Bc7 {[%clk 0:00:05]}  Nf6 {[%clk 0:00:13]} 56. Kg3 {[%clk 0:00:05]}  Nd5 {[%clk 0:00:12]} 57. Bd8 {[%clk 0:00:05]}  Nf4 {[%clk 0:00:12]} 58. Bf6 {[%clk 0:00:04]}  Ne2+ {[%clk 0:00:12]} 59. Kf2 {[%clk 0:00:04]}  Kf4 {[%clk 0:00:12]} 60. Bg7 {[%clk 0:00:04]}  Kxg4 {[%clk 0:00:12]} 61. Bxh6 {[%clk 0:00:04]}  Kf4 {[%clk 0:00:12]} 62. Bxg5+ {[%clk 0:00:04]}  Kxg5 {[%clk 0:00:12]} 63. Kxf3 {[%clk 0:00:05]}  Nd4+ {[%clk 0:00:12]} 64. Ke4 {[%clk 0:00:06]}  Nc6 {[%clk 0:00:12]} 65. Kd5 {[%clk 0:00:06]}  Kf6 {[%clk 0:00:12]} 66. Kd6 {[%clk 0:00:07]}  Nb4 {[%clk 0:00:12]} 67. Kc7 {[%clk 0:00:08]}  Nxa2 {[%clk 0:00:11]} 68. Kxb7 {[%clk 0:00:08]}  Nc1 {[%clk 0:00:11]} 69. b4 {[%clk 0:00:07]}  Nd3 {[%clk 0:00:11]} 70. b5 {[%clk 0:00:08]}  Ne5 {[%clk 0:00:10]} 71. Kxa7 {[%clk 0:00:08]}  Ke6 {[%clk 0:00:10]} 72. b6 {[%clk 0:00:07]}  Nc6+ {[%clk 0:00:09]} 73. Kb7 {[%clk 0:00:08]}  Kd5 {[%clk 0:00:09]} 74. Kc7 {[%clk 0:00:08]}  Kc5 {[%clk 0:00:10]} 75. b7 {[%clk 0:00:08]}  Kb5 {[%clk 0:00:09]} 76. b8=Q+ {[%clk 0:00:07]}  Nxb8 {[%clk 0:00:09]} 1/2-1/2

[Event "January 2 Early 2024"]
[Site "https://www.chess.com"]
[Date "2024.01.02"]
[Round "2"]
[White "Desideri, Ricardo Maruchi"]
[Black "Khromkin, Andrey"]
[Result "0-1"]
[Board "259"]
[TimeControl "180+1"]
[WhiteFideId "2110440"]
[BlackFideId "4154126"]
[WhiteElo "1985"]
[BlackElo "2403"]
[WhiteTeam "BRA"]
[BlackTeam "RUS"]
[WhiteClock "0:00:18"]
[BlackClock "0:02:24"]

1. e4 {[%clk 0:03:00]}  d5 {[%clk 0:03:00]} 2. exd5 {[%clk 0:02:59]}  Qxd5 {[%clk 0:03:00]} 3. Nc3 {[%clk 0:02:58]}  Qd6 {[%clk 0:03:01]} 4. d3 {[%clk 0:02:56]}  Nf6 {[%clk 0:03:01]} 5. Nf3 {[%clk 0:02:54]}  b6 {[%clk 0:03:01]} 6. Be2 {[%clk 0:02:53]}  Bb7 {[%clk 0:03:02]} 7. O-O {[%clk 0:02:52]}  e6 {[%clk 0:03:02]} 8. Nb5 {[%clk 0:02:47]}  Qd7 {[%clk 0:03:01]} 9. a4 {[%clk 0:02:45]}  a6 {[%clk 0:02:59]} 10. Nc3 {[%clk 0:02:43]}  Nc6 {[%clk 0:02:59]} 11. Bg5 {[%clk 0:02:37]}  Be7 {[%clk 0:03:00]} 12. Nd2 {[%clk 0:02:22]}  Nd4 {[%clk 0:02:56]} 13. Nde4 {[%clk 0:02:17]}  Nf5 {[%clk 0:02:51]} 14. Bxf6 {[%clk 0:01:44]}  gxf6 {[%clk 0:02:47]} 15. Bf3 {[%clk 0:01:40]}  O-O-O {[%clk 0:02:44]} 16. a5 {[%clk 0:01:36]}  b5 {[%clk 0:02:41]} 17. Re1 {[%clk 0:01:27]}  Nd4 {[%clk 0:02:38]} 18. Na2 {[%clk 0:00:56]}  Nxf3+ {[%clk 0:02:29]} 19. gxf3 {[%clk 0:00:54]}  Rhg8+ {[%clk 0:02:28]} 20. Ng3 {[%clk 0:00:52]}  f5 {[%clk 0:02:29]} 21. Kh1 {[%clk 0:00:51]}  Qc6 {[%clk 0:02:25]} 22. Nb4 {[%clk 0:00:35]}  Qxf3+ {[%clk 0:02:24]} 23. Qxf3 {[%clk 0:00:35]}  Bxf3+ {[%clk 0:02:24]} 24. Kg1 {[%clk 0:00:18]}  f4 {[%clk 0:02:24]} 0-1

[Event "January 2 Early 2024"]
[Site "https://www.chess.com"]
[Date "2024.01.02"]
[Round "2"]
[White "Begunov, Konstantin"]
[Black "Smirnov, Timofey"]
[Result "1-0"]
[Board "260"]
[TimeControl "180+1"]
[WhiteFideId "4118510"]
[BlackFideId "24176427"]
[WhiteElo "2402"]
[BlackElo "1980"]
[WhiteTeam "RUS"]
[BlackTeam "RUS"]
[WhiteClock "0:01:11"]
[BlackClock "0:00:13"]

1. d4 {[%clk 0:03:00]}  d5 {[%clk 0:02:49]} 2. c4 {[%clk 0:03:00]}  c6 {[%clk 0:02:49]} 3. Nc3 {[%clk 0:03:00]}  Nf6 {[%clk 0:02:48]} 4. Nf3 {[%clk 0:03:00]}  e6 {[%clk 0:02:49]} 5. cxd5 {[%clk 0:03:00]}  exd5 {[%clk 0:02:49]} 6. Bg5 {[%clk 0:03:00]}  Nbd7 {[%clk 0:02:44]} 7. e3 {[%clk 0:03:00]}  Qa5 {[%clk 0:02:42]} 8. Nd2 {[%clk 0:02:40]}  Bb4 {[%clk 0:02:38]} 9. Qc2 {[%clk 0:02:38]}  O-O {[%clk 0:02:33]} 10. Bd3 {[%clk 0:02:38]}  h6 {[%clk 0:02:28]} 11. Bh4 {[%clk 0:02:37]}  Re8 {[%clk 0:02:25]} 12. O-O {[%clk 0:02:34]}  Bxc3 {[%clk 0:02:07]} 13. bxc3 {[%clk 0:02:33]}  Qc7 {[%clk 0:02:03]} 14. c4 {[%clk 0:02:30]}  dxc4 {[%clk 0:02:03]} 15. Bxc4 {[%clk 0:02:28]}  Nb6 {[%clk 0:01:54]} 16. Bxf6 {[%clk 0:02:25]}  gxf6 {[%clk 0:01:51]} 17. Qg6+ {[%clk 0:02:17]}  Kf8 {[%clk 0:01:43]} 18. Qxh6+ {[%clk 0:02:15]}  Ke7 {[%clk 0:01:43]} 19. Bxf7 {[%clk 0:02:11]}  Rf8 {[%clk 0:01:33]} 20. Bb3 {[%clk 0:02:10]}  Be6 {[%clk 0:01:19]} 21. Ne4 {[%clk 0:01:46]}  Bxb3 {[%clk 0:01:12]} 22. axb3 {[%clk 0:01:47]}  Nd5 {[%clk 0:01:01]} 23. Ng3 {[%clk 0:01:32]}  Rae8 {[%clk 0:00:24]} 24. e4 {[%clk 0:01:32]}  Nf4 {[%clk 0:00:22]} 25. e5 {[%clk 0:01:30]}  fxe5 {[%clk 0:00:20]} 26. dxe5 {[%clk 0:01:23]}  Kd8 {[%clk 0:00:18]} 27. Rxa7 {[%clk 0:01:20]}  Qb8 {[%clk 0:00:13]} 28. Rfa1 {[%clk 0:01:11]} 1-0

[Event "January 2 Early 2024"]
[Site "https://www.chess.com"]
[Date "2024.01.02"]
[Round "2"]
[White "Cornelison, Paul"]
[Black "Skibbe, Willi"]
[Result "0-1"]
[Board "264"]
[TimeControl "180+1"]
[WhiteFideId "2004186"]
[BlackFideId "4682190"]
[WhiteElo "1948"]
[BlackElo "2399"]
[WhiteTeam "USA"]
[BlackTeam "GER"]
[WhiteClock "0:01:21"]
[BlackClock "0:01:17"]

1. e4 {[%clk 0:03:00]}  e6 {[%clk 0:02:43]} 2. d4 {[%clk 0:03:00]}  d5 {[%clk 0:02:40]} 3. Nc3 {[%clk 0:03:00]}  Nf6 {[%clk 0:02:38]} 4. Bg5 {[%clk 0:02:58]}  dxe4 {[%clk 0:02:37]} 5. f3 {[%clk 0:02:58]}  exf3 {[%clk 0:02:36]} 6. Nxf3 {[%clk 0:02:59]}  Be7 {[%clk 0:02:35]} 7. Bd3 {[%clk 0:02:59]}  Nbd7 {[%clk 0:02:35]} 8. O-O {[%clk 0:02:58]}  h6 {[%clk 0:02:31]} 9. Bh4 {[%clk 0:02:51]}  O-O {[%clk 0:02:30]} 10. Ne2 {[%clk 0:02:50]}  Nd5 {[%clk 0:02:23]} 11. Bf2 {[%clk 0:02:48]}  c5 {[%clk 0:02:14]} 12. c3 {[%clk 0:02:45]}  cxd4 {[%clk 0:02:11]} 13. Nexd4 {[%clk 0:02:45]}  Bf6 {[%clk 0:02:09]} 14. Ne2 {[%clk 0:02:37]}  Ne5 {[%clk 0:02:03]} 15. Nxe5 {[%clk 0:02:33]}  Bxe5 {[%clk 0:02:04]} 16. Qc2 {[%clk 0:02:26]}  Qc7 {[%clk 0:01:59]} 17. a3 {[%clk 0:02:26]}  Bxh2+ {[%clk 0:01:56]} 18. Kh1 {[%clk 0:02:25]}  Be5 {[%clk 0:01:56]} 19. Rae1 {[%clk 0:02:08]}  Bd7 {[%clk 0:01:52]} 20. Nd4 {[%clk 0:02:08]}  Nf4 {[%clk 0:01:49]} 21. Be4 {[%clk 0:01:57]}  Nh5 {[%clk 0:01:46]} 22. Nf3 {[%clk 0:01:51]}  Ng3+ {[%clk 0:01:42]} 23. Bxg3 {[%clk 0:01:51]}  Bxg3 {[%clk 0:01:42]} 24. Re3 {[%clk 0:01:48]}  Bb5 {[%clk 0:01:37]} 25. Bh7+ {[%clk 0:01:41]}  Kh8 {[%clk 0:01:36]} 26. Bd3 {[%clk 0:01:40]}  Bxd3 {[%clk 0:01:33]} 27. Qxd3 {[%clk 0:01:41]}  Rad8 {[%clk 0:01:32]} 28. Qe2 {[%clk 0:01:41]}  Bf4 {[%clk 0:01:30]} 29. Rd3 {[%clk 0:01:38]}  Rxd3 {[%clk 0:01:29]} 30. Qxd3 {[%clk 0:01:38]}  Rd8 {[%clk 0:01:29]} 31. Qe4 {[%clk 0:01:38]}  Bg3 {[%clk 0:01:22]} 32. Nh4 {[%clk 0:01:30]}  Bxh4 {[%clk 0:01:21]} 33. Qxh4 {[%clk 0:01:31]}  f6 {[%clk 0:01:19]} 34. Rf2 {[%clk 0:01:21]}  Rd1+ {[%clk 0:01:17]} 0-1

[Event "January 2 Early 2024"]
[Site "https://www.chess.com"]
[Date "2024.01.02"]
[Round "2"]
[White "Carre, Sylvain"]
[Black "Thake, Conrad"]
[Result "1-0"]
[Board "266"]
[TimeControl "180+1"]
[WhiteFideId "642118"]
[BlackFideId "5602947"]
[WhiteElo "2398"]
[BlackElo "1879"]
[WhiteTeam "FRA"]
[BlackTeam "MLT"]
[WhiteClock "0:00:42"]
[BlackClock "0:00:09"]

1. d4 {[%clk 0:03:00]}  Nf6 {[%clk 0:02:56]} 2. Bf4 {[%clk 0:03:00]}  c5 {[%clk 0:02:54]} 3. e3 {[%clk 0:02:59]}  d5 {[%clk 0:02:51]} 4. c3 {[%clk 0:02:59]}  Qb6 {[%clk 0:02:46]} 5. Qb3 {[%clk 0:02:59]}  e6 {[%clk 0:02:44]} 6. Nd2 {[%clk 0:02:58]}  Nc6 {[%clk 0:02:42]} 7. Ngf3 {[%clk 0:02:59]}  c4 {[%clk 0:02:34]} 8. Qc2 {[%clk 0:02:58]}  Be7 {[%clk 0:02:26]} 9. h3 {[%clk 0:02:57]}  Bd7 {[%clk 0:02:21]} 10. Rb1 {[%clk 0:02:57]}  a5 {[%clk 0:02:19]} 11. e4 {[%clk 0:02:57]}  a4 {[%clk 0:02:01]} 12. a3 {[%clk 0:02:53]}  Na5 {[%clk 0:01:55]} 13. e5 {[%clk 0:02:50]}  Nh5 {[%clk 0:01:45]} 14. Bh2 {[%clk 0:02:50]}  g6 {[%clk 0:01:39]} 15. g4 {[%clk 0:02:50]}  Ng7 {[%clk 0:01:38]} 16. Bg2 {[%clk 0:02:50]}  O-O-O {[%clk 0:01:35]} 17. O-O {[%clk 0:02:46]}  Nb3 {[%clk 0:01:35]} 18. Nxb3 {[%clk 0:02:43]}  cxb3 {[%clk 0:01:33]} 19. Qd2 {[%clk 0:02:40]}  Bb5 {[%clk 0:01:33]} 20. Rfc1 {[%clk 0:02:40]}  Bc4 {[%clk 0:01:31]} 21. Qf4 {[%clk 0:02:35]}  Rdf8 {[%clk 0:01:24]} 22. Nd2 {[%clk 0:02:36]}  Bd3 {[%clk 0:01:20]} 23. Ra1 {[%clk 0:02:35]}  h6 {[%clk 0:01:11]} 24. Bf1 {[%clk 0:02:35]}  Bg5 {[%clk 0:01:09]} 25. Bxd3 {[%clk 0:02:19]}  Bxf4 {[%clk 0:01:07]} 26. Bxf4 {[%clk 0:02:19]}  g5 {[%clk 0:01:05]} 27. Be3 {[%clk 0:02:18]}  f5 {[%clk 0:00:57]} 28. exf6 {[%clk 0:02:12]}  Rxf6 {[%clk 0:00:56]} 29. c4 {[%clk 0:02:13]}  Kb8 {[%clk 0:00:51]} 30. c5 {[%clk 0:02:05]}  Qc7 {[%clk 0:00:47]} 31. c6 {[%clk 0:01:59]}  bxc6 {[%clk 0:00:44]} 32. Rc5 {[%clk 0:02:00]}  e5 {[%clk 0:00:40]} 33. Rac1 {[%clk 0:01:58]}  e4 {[%clk 0:00:39]} 34. Bb5 {[%clk 0:01:56]}  h5 {[%clk 0:00:36]} 35. Rxc6 {[%clk 0:01:55]}  Rxc6 {[%clk 0:00:35]} 36. Rxc6 {[%clk 0:01:56]}  Qb7 {[%clk 0:00:33]} 37. Rc5 {[%clk 0:01:42]}  hxg4 {[%clk 0:00:31]} 38. hxg4 {[%clk 0:01:42]}  Ne6 {[%clk 0:00:29]} 39. Bc6 {[%clk 0:01:25]}  Qh7 {[%clk 0:00:25]} 40. Rb5+ {[%clk 0:01:24]}  Kc7 {[%clk 0:00:24]} 41. Rb7+ {[%clk 0:01:23]}  Kxc6 {[%clk 0:00:24]} 42. Rxh7 {[%clk 0:01:24]}  Rxh7 {[%clk 0:00:24]} 43. Nb1 {[%clk 0:01:20]}  Nf4 {[%clk 0:00:24]} 44. Nc3 {[%clk 0:01:18]}  Ra7 {[%clk 0:00:22]} 45. Kh2 {[%clk 0:01:13]}  Nd3 {[%clk 0:00:21]} 46. Nd1 {[%clk 0:01:13]}  Nf4 {[%clk 0:00:21]} 47. Kg3 {[%clk 0:01:12]}  Kb5 {[%clk 0:00:21]} 48. Bxf4 {[%clk 0:01:06]}  gxf4+ {[%clk 0:00:20]} 49. Kxf4 {[%clk 0:01:07]}  Kc4 {[%clk 0:00:21]} 50. Ke3 {[%clk 0:00:59]}  Rf7 {[%clk 0:00:20]} 51. g5 {[%clk 0:00:52]}  Rf3+ {[%clk 0:00:18]} 52. Ke2 {[%clk 0:00:52]}  Rh3 {[%clk 0:00:15]} 53. g6 {[%clk 0:00:50]}  Rh6 {[%clk 0:00:13]} 54. g7 {[%clk 0:00:50]}  Rg6 {[%clk 0:00:14]} 55. Nc3 {[%clk 0:00:50]}  Rxg7 {[%clk 0:00:13]} 56. Nxa4 {[%clk 0:00:51]}  Kxd4 {[%clk 0:00:13]} 57. Nc3 {[%clk 0:00:48]}  Rc7 {[%clk 0:00:13]} 58. Nb5+ {[%clk 0:00:47]}  Kc4 {[%clk 0:00:10]} 59. Nxc7 {[%clk 0:00:48]}  d4 {[%clk 0:00:11]} 60. Kd2 {[%clk 0:00:44]}  Kc5 {[%clk 0:00:09]} 61. Ne6+ {[%clk 0:00:44]}  Kc4 {[%clk 0:00:09]} 62. a4 {[%clk 0:00:41]}  Kb4 {[%clk 0:00:09]} 63. Nxd4 {[%clk 0:00:41]}  Kxa4 {[%clk 0:00:10]} 64. Ke3 {[%clk 0:00:41]}  Kb4 {[%clk 0:00:10]} 65. Kxe4 {[%clk 0:00:41]}  Kc4 {[%clk 0:00:11]} 66. Nxb3 {[%clk 0:00:41]}  Kxb3 {[%clk 0:00:11]} 67. f4 {[%clk 0:00:41]}  Kxb2 {[%clk 0:00:09]} 68. f5 {[%clk 0:00:42]} 1-0

[Event "January 2 Early 2024"]
[Site "https://www.chess.com"]
[Date "2024.01.02"]
[Round "2"]
[White "Abdilkhair, Abilmansur"]
[Black "Sokolov, Andrei"]
[Result "1-0"]
[Board "267"]
[TimeControl "180+1"]
[WhiteFideId "13716417"]
[BlackFideId "11600306"]
[WhiteElo "1834"]
[BlackElo "2398"]
[WhiteTeam "KAZ"]
[BlackTeam "LAT"]
[WhiteClock "0:00:41"]
[BlackClock "0:00:00"]

1. e4 {[%clk 0:03:00]}  e5 {[%clk 0:02:59]} 2. Nf3 {[%clk 0:03:00]}  Nc6 {[%clk 0:02:59]} 3. Bc4 {[%clk 0:02:52]}  Bc5 {[%clk 0:02:54]} 4. O-O {[%clk 0:02:51]}  Nf6 {[%clk 0:02:53]} 5. d3 {[%clk 0:02:51]}  O-O {[%clk 0:02:49]} 6. c3 {[%clk 0:02:51]}  a6 {[%clk 0:02:43]} 7. Re1 {[%clk 0:02:38]}  Ba7 {[%clk 0:02:35]} 8. Bg5 {[%clk 0:02:30]}  h6 {[%clk 0:02:31]} 9. Bh4 {[%clk 0:02:30]}  d6 {[%clk 0:02:31]} 10. Nbd2 {[%clk 0:02:26]}  Be6 {[%clk 0:02:19]} 11. Bb3 {[%clk 0:02:13]}  g5 {[%clk 0:02:10]} 12. Bg3 {[%clk 0:01:47]}  Kh8 {[%clk 0:02:03]} 13. Nf1 {[%clk 0:01:46]}  Rg8 {[%clk 0:02:03]} 14. Ne3 {[%clk 0:01:43]}  h5 {[%clk 0:01:46]} 15. Bxe6 {[%clk 0:01:28]}  fxe6 {[%clk 0:01:45]} 16. h4 {[%clk 0:01:29]}  g4 {[%clk 0:01:02]} 17. Ng5 {[%clk 0:01:29]}  Qe7 {[%clk 0:01:00]} 18. Qb3 {[%clk 0:01:28]}  Nd8 {[%clk 0:00:57]} 19. Rad1 {[%clk 0:01:14]}  Nh7 {[%clk 0:00:56]} 20. Nxh7 {[%clk 0:01:13]}  Qxh7 {[%clk 0:00:54]} 21. d4 {[%clk 0:01:10]}  Qxe4 {[%clk 0:00:44]} 22. dxe5 {[%clk 0:01:08]}  dxe5 {[%clk 0:00:20]} 23. Nd5 {[%clk 0:01:03]}  Qf5 {[%clk 0:00:13]} 24. Ne7 {[%clk 0:00:55]}  Qf7 {[%clk 0:00:11]} 25. Nxg8 {[%clk 0:00:54]}  Kxg8 {[%clk 0:00:11]} 26. Rxe5 {[%clk 0:00:53]}  c5 {[%clk 0:00:06]} 27. Rg5+ {[%clk 0:00:52]}  Kf8 {[%clk 0:00:04]} 28. Bd6+ {[%clk 0:00:52]}  Ke8 {[%clk 0:00:04]} 29. Qa4+ {[%clk 0:00:50]}  b5 {[%clk 0:00:04]} 30. Qe4 {[%clk 0:00:50]}  c4 {[%clk 0:00:00]} 31. Bf4 {[%clk 0:00:41]} 1-0

[Event "January 2 Early 2024"]
[Site "https://www.chess.com"]
[Date "2024.01.02"]
[Round "2"]
[White "Babayeva, Nasrin"]
[Black "Tiarks, Jann-Christian"]
[Result "0-1"]
[Board "268"]
[TimeControl "180+1"]
[WhiteFideId "13416626"]
[BlackFideId "12951595"]
[WhiteElo "1799"]
[BlackElo "2397"]
[WhiteTeam "AZE"]
[BlackTeam "GER"]
[WhiteClock "0:00:43"]
[BlackClock "0:01:39"]

1. c4 {[%clk 0:03:00]}  c5 {[%clk 0:02:58]} 2. g3 {[%clk 0:03:01]}  Nc6 {[%clk 0:02:58]} 3. Bg2 {[%clk 0:03:01]}  g6 {[%clk 0:02:58]} 4. Nc3 {[%clk 0:03:02]}  Bg7 {[%clk 0:02:59]} 5. d3 {[%clk 0:03:00]}  e5 {[%clk 0:02:58]} 6. Nf3 {[%clk 0:03:01]}  Nge7 {[%clk 0:02:58]} 7. O-O {[%clk 0:02:58]}  O-O {[%clk 0:02:58]} 8. a3 {[%clk 0:02:57]}  a5 {[%clk 0:02:56]} 9. Ne1 {[%clk 0:02:57]}  d6 {[%clk 0:02:55]} 10. Nc2 {[%clk 0:02:54]}  Be6 {[%clk 0:02:55]} 11. Ne3 {[%clk 0:02:53]}  Rb8 {[%clk 0:02:56]} 12. Rb1 {[%clk 0:02:39]}  Qd7 {[%clk 0:02:55]} 13. Ned5 {[%clk 0:02:39]}  Bh3 {[%clk 0:02:53]} 14. Bh6 {[%clk 0:02:30]}  Bxg2 {[%clk 0:02:52]} 15. Kxg2 {[%clk 0:02:13]}  Nxd5 {[%clk 0:02:42]} 16. Nxd5 {[%clk 0:02:09]}  f5 {[%clk 0:02:41]} 17. Bxg7 {[%clk 0:02:08]}  Kxg7 {[%clk 0:02:41]} 18. b4 {[%clk 0:02:07]}  axb4 {[%clk 0:02:40]} 19. axb4 {[%clk 0:02:08]}  b6 {[%clk 0:02:39]} 20. b5 {[%clk 0:02:06]}  Ne7 {[%clk 0:02:38]} 21. e4 {[%clk 0:01:38]}  Nxd5 {[%clk 0:02:33]} 22. exd5 {[%clk 0:01:34]}  Ra8 {[%clk 0:02:30]} 23. Ra1 {[%clk 0:01:33]}  f4 {[%clk 0:02:26]} 24. f3 {[%clk 0:01:29]}  Qf5 {[%clk 0:02:23]} 25. Qe2 {[%clk 0:01:15]}  h5 {[%clk 0:02:13]} 26. Qe4 {[%clk 0:01:12]}  Qg5 {[%clk 0:01:58]} 27. Kf2 {[%clk 0:00:58]}  Kh6 {[%clk 0:01:56]} 28. Rg1 {[%clk 0:00:55]}  fxg3+ {[%clk 0:01:46]} 29. hxg3 {[%clk 0:00:50]}  Qd2+ {[%clk 0:01:42]} 30. Qe2 {[%clk 0:00:43]}  Rxf3+ {[%clk 0:01:39]} 0-1

[Event "January 2 Early 2024"]
[Site "https://www.chess.com"]
[Date "2024.01.02"]
[Round "3"]
[White "Carlsen, Magnus"]
[Black "Bologan, Victor"]
[Result "1-0"]
[Board "1"]
[TimeControl "180+1"]
[WhiteFideId "1503014"]
[BlackFideId "13900048"]
[WhiteElo "3366"]
[BlackElo "2805"]
[WhiteTeam "NOR"]
[BlackTeam "MDA"]
[WhiteClock "0:01:16"]
[BlackClock "0:00:35"]

1. e4 {[%clk 0:03:00]}  c5 {[%clk 0:02:59]} 2. Nf3 {[%clk 0:02:56]}  d6 {[%clk 0:02:59]} 3. c3 {[%clk 0:02:56]}  Nf6 {[%clk 0:02:58]} 4. Bd3 {[%clk 0:02:09]}  Bg4 {[%clk 0:02:53]} 5. h3 {[%clk 0:02:07]}  Bh5 {[%clk 0:02:52]} 6. Be2 {[%clk 0:02:06]}  e6 {[%clk 0:02:47]} 7. O-O {[%clk 0:02:05]}  Be7 {[%clk 0:02:45]} 8. d3 {[%clk 0:02:02]}  O-O {[%clk 0:02:43]} 9. Be3 {[%clk 0:01:58]}  Nc6 {[%clk 0:02:42]} 10. Nbd2 {[%clk 0:01:58]}  d5 {[%clk 0:02:39]} 11. Re1 {[%clk 0:01:53]}  e5 {[%clk 0:02:32]} 12. Bg5 {[%clk 0:01:51]}  dxe4 {[%clk 0:02:06]} 13. dxe4 {[%clk 0:01:49]}  Qc7 {[%clk 0:02:04]} 14. Qc2 {[%clk 0:01:46]}  h6 {[%clk 0:02:00]} 15. Bxf6 {[%clk 0:01:46]}  Bxf6 {[%clk 0:02:00]} 16. Nc4 {[%clk 0:01:46]}  Bxf3 {[%clk 0:01:56]} 17. Bxf3 {[%clk 0:01:46]}  g6 {[%clk 0:01:51]} 18. g3 {[%clk 0:01:45]}  h5 {[%clk 0:01:50]} 19. h4 {[%clk 0:01:44]}  Bg7 {[%clk 0:01:48]} 20. a4 {[%clk 0:01:44]}  Bh6 {[%clk 0:01:45]} 21. Red1 {[%clk 0:01:42]}  Rad8 {[%clk 0:01:44]} 22. Rd5 {[%clk 0:01:42]}  b6 {[%clk 0:01:43]} 23. Rad1 {[%clk 0:01:38]}  Ne7 {[%clk 0:01:40]} 24. Rxd8 {[%clk 0:01:37]}  Rxd8 {[%clk 0:01:40]} 25. Rxd8+ {[%clk 0:01:38]}  Qxd8 {[%clk 0:01:40]} 26. Nxe5 {[%clk 0:01:39]}  Qd2 {[%clk 0:01:38]} 27. Qxd2 {[%clk 0:01:39]}  Bxd2 {[%clk 0:01:38]} 28. Kf1 {[%clk 0:01:39]}  f6 {[%clk 0:01:33]} 29. Nc4 {[%clk 0:01:38]}  Bh6 {[%clk 0:01:33]} 30. e5 {[%clk 0:01:34]}  Kf7 {[%clk 0:01:30]} 31. Ke2 {[%clk 0:01:33]}  Ke6 {[%clk 0:01:28]} 32. exf6 {[%clk 0:01:33]}  Kxf6 {[%clk 0:01:28]} 33. a5 {[%clk 0:01:33]}  bxa5 {[%clk 0:01:23]} 34. Nxa5 {[%clk 0:01:32]}  Bc1 {[%clk 0:01:22]} 35. b3 {[%clk 0:01:32]}  Ke6 {[%clk 0:01:17]} 36. Kd3 {[%clk 0:01:30]}  Bh6 {[%clk 0:01:13]} 37. Nb7 {[%clk 0:01:28]}  Ke5 {[%clk 0:00:54]} 38. Nxc5 {[%clk 0:01:27]}  Nf5 {[%clk 0:00:53]} 39. Be4 {[%clk 0:01:25]}  Ne7 {[%clk 0:00:52]} 40. b4 {[%clk 0:01:23]}  Kd6 {[%clk 0:00:51]} 41. c4 {[%clk 0:01:23]}  g5 {[%clk 0:00:51]} 42. hxg5 {[%clk 0:01:20]}  Bxg5 {[%clk 0:00:51]} 43. Bf3 {[%clk 0:01:20]}  Bc1 {[%clk 0:00:44]} 44. Bxh5 {[%clk 0:01:19]}  Ba3 {[%clk 0:00:44]} 45. Ne4+ {[%clk 0:01:19]}  Ke5 {[%clk 0:00:41]} 46. f4+ {[%clk 0:01:18]}  Kf5 {[%clk 0:00:35]} 47. b5 {[%clk 0:01:16]} 1-0